[Event "Mitropa Cup 2023 Open selection"]
[Site "Mali Losinj, Croatia"]
[Date "2023.04.11"]
[Round "1.14"]
[White "Kozak, Adam"]
[Black "Dobrovoljc, Vid"]
[Result "1-0"]
[TimeControl "90 min + 30 min after 40 moves + 30 sec increment from move 1"]
[WhiteElo "2568"]
[BlackElo "2370"]

1. c4 {[%clk 01:30:57]} {[%emt 00:00:03]} e5 {[%clk 01:29:51]} {[%emt
00:01:09]} 2. Nc3 {[%clk 01:30:32]} {[%emt 00:00:54]} Bb4 {[%clk 01:28:57]}
{[%emt 00:01:25]} 3. Nf3 {[%clk 01:30:55]} {[%emt 00:00:07]} Bxc3 {[%clk
01:28:31]} {[%emt 00:00:56]} 4. dxc3 {[%clk 01:31:18]} {[%emt 00:00:07]} d6
{[%clk 01:14:23]} {[%emt 00:14:38]} 5. c5 {[%clk 01:31:42]} {[%emt 00:00:06]}
Nf6 {[%clk 01:12:44]} {[%emt 00:02:09]} 6. cxd6 {[%clk 01:32:03]} {[%emt
00:00:09]} cxd6 {[%clk 01:13:10]} {[%emt 00:00:04]} 7. e4 {[%clk 01:32:25]}
{[%emt 00:00:08]} O-O {[%clk 01:12:55]} {[%emt 00:00:45]} 8. Bd3 {[%clk
01:32:15]} {[%emt 00:00:40]} Nbd7 {[%clk 01:01:18]} {[%emt 00:12:07]} 9. O-O
{[%clk 01:28:30]} {[%emt 00:04:15]} d5 {[%clk 00:46:09]} {[%emt 00:15:39]} 10.
Qe2 {[%clk 01:20:07]} {[%emt 00:08:52]} Nc5 {[%clk 00:39:28]} {[%emt 00:07:10]}
11. Nxe5 {[%clk 01:16:36]} {[%emt 00:04:01]} Qe7 {[%clk 00:27:06]} {[%emt
00:12:52]} 12. Bf4 {[%clk 01:11:56]} {[%emt 00:05:10]} Nxd3 {[%clk 00:23:51]}
{[%emt 00:03:45]} 13. Qxd3 {[%clk 01:09:26]} {[%emt 00:03:01]} dxe4 {[%clk
00:24:00]} {[%emt 00:00:22]} 14. Qe2 {[%clk 01:08:55]} {[%emt 00:01:01]} Bf5
{[%clk 00:22:08]} {[%emt 00:02:21]} 15. Nc4 {[%clk 01:05:01]} {[%emt 00:04:25]}
Qe6 {[%clk 00:22:09]} {[%emt 00:00:27]} 16. Ne3 {[%clk 01:03:03]} {[%emt
00:02:29]} Ng4 {[%clk 00:14:59]} {[%emt 00:07:40]} 17. Nc2 {[%clk 00:56:44]}
{[%emt 00:06:49]} Qg6 {[%clk 00:05:31]} {[%emt 00:09:58]} 18. Rad1 {[%clk
00:47:38]} {[%emt 00:09:36]} e3 {[%clk 00:00:57]} {[%emt 00:05:04]} 19. Nxe3
{[%clk 00:41:37]} {[%emt 00:06:31]} Nxe3 {[%clk 00:00:52]} {[%emt 00:00:35]} 20.
Qxe3 {[%clk 00:41:53]} {[%emt 00:00:13]} Rfe8 {[%clk 00:01:17]} {[%emt
00:00:05]} 21. Qd2 {[%clk 00:39:28]} {[%emt 00:02:55]} Bc2 {[%clk 00:00:45]}
{[%emt 00:01:01]} 22. Rc1 {[%clk 00:39:08]} {[%emt 00:00:52]} Bd3 {[%clk
00:00:47]} {[%emt 00:00:29]} 23. Rfe1 {[%clk 00:39:01]} {[%emt 00:00:36]} Be4
{[%clk 00:01:08]} {[%emt 00:00:09]} 24. Bg3 {[%clk 00:38:43]} {[%emt 00:00:48]}
h5 {[%clk 00:00:55]} {[%emt 00:00:42]} 25. h4 {[%clk 00:25:29]} {[%emt
00:13:44]} Re6 {[%clk 00:00:34]} {[%emt 00:00:51]} 26. Qg5 {[%clk 00:22:30]}
{[%emt 00:03:30]} Rae8 {[%clk 00:00:34]} {[%emt 00:00:30]} 27. Bf4 {[%clk
00:19:59]} {[%emt 00:03:01]} Kh7 {[%clk 00:00:34]} {[%emt 00:00:29]} 28. Re3
{[%clk 00:13:12]} {[%emt 00:07:17]} Bc6 {[%clk 00:00:37]} {[%emt 00:00:27]} 29.
b3 {[%clk 00:08:24]} {[%emt 00:05:19]} a6 {[%clk 00:00:41]} {[%emt 00:00:25]}
30. Rce1 {[%clk 00:01:56]} {[%emt 00:06:59]} Rxe3 {[%clk 00:00:50]} {[%emt
00:00:20]} 31. Bxe3 {[%clk 00:02:01]} {[%emt 00:00:26]} Re4 {[%clk 00:00:38]}
{[%emt 00:00:42]} 32. Qxg6+ {[%clk 00:00:36]} {[%emt 00:01:54]} Kxg6 {[%clk
00:01:03]} {[%emt 00:00:05]} 33. f3 {[%clk 00:00:59]} {[%emt 00:00:08]} Re7
{[%clk 00:01:09]} {[%emt 00:00:23]} 34. Kf2 {[%clk 00:01:22]} {[%emt 00:00:08]}
f6 {[%clk 00:00:46]} {[%emt 00:00:53]} 35. c4 {[%clk 00:01:31]} {[%emt
00:00:21]} Kf5 {[%clk 00:01:00]} {[%emt 00:00:15]} 36. Rc1 {[%clk 00:00:37]}
{[%emt 00:01:25]} g5 {[%clk 00:01:09]} {[%emt 00:00:21]} 37. Rf1 {[%clk
00:00:31]} {[%emt 00:00:36]} Kg6 {[%clk 00:00:53]} {[%emt 00:00:45]} 38. Rd1
{[%clk 00:00:32]} {[%emt 00:00:30]} Rd7 {[%clk 00:01:07]} {[%emt 00:00:16]} 39.
Rh1 {[%clk 00:00:56]} {[%emt 00:00:06]} Re7 {[%clk 00:00:59]} {[%emt 00:00:38]}
40. Rh3 {[%clk 00:30:33]} {[%emt 00:00:53]} Bd7 {[%clk 00:30:44]} {[%emt
00:00:44]} 41. Rh1 {[%clk 00:29:01]} {[%emt 00:02:03]} Bc6 {[%clk 00:30:16]}
{[%emt 00:00:58]} 42. Ra1 {[%clk 00:27:15]} {[%emt 00:02:15]} Rd7 {[%clk
00:20:57]} {[%emt 00:09:49]} 43. Ke2 {[%clk 00:26:19]} {[%emt 00:01:26]} Rd6
{[%clk 00:21:06]} {[%emt 00:00:22]} 44. a4 {[%clk 00:25:36]} {[%emt 00:01:13]}
Bd7 {[%clk 00:19:12]} {[%emt 00:02:24]} 45. b4 {[%clk 00:11:16]} {[%emt
00:14:50]} Bf5 {[%clk 00:18:24]} {[%emt 00:01:17]} 46. c5 {[%clk 00:10:01]}
{[%emt 00:01:46]} Rd5 {[%clk 00:18:40]} {[%emt 00:00:13]} 47. Kf2 {[%clk
00:05:06]} {[%emt 00:05:26]} Bd7 {[%clk 00:18:50]} {[%emt 00:00:19]} 48. hxg5
{[%clk 00:05:35]} {[%emt 00:00:02]} fxg5 {[%clk 00:19:13]} {[%emt 00:00:07]} 49.
b5 {[%clk 00:05:28]} {[%emt 00:00:36]} axb5 {[%clk 00:16:45]} {[%emt 00:02:59]}
50. a5 {[%clk 00:05:57]} Re5 {[%clk 00:15:43]} {[%emt 00:01:32]} 51. Rd1 {[%clk
00:04:45]} {[%emt 00:01:42]} Bf5 {[%clk 00:08:46]} {[%emt 00:07:26]} 52. c6
{[%clk 00:04:08]} {[%emt 00:01:07]} bxc6 {[%clk 00:08:51]} {[%emt 00:00:25]} 53.
a6 {[%clk 00:04:18]} {[%emt 00:00:20]} b4 {[%clk 00:06:33]} {[%emt 00:02:48]}
54. Bb6 {[%clk 00:00:32]} {[%emt 00:04:17]} Re8 {[%clk 00:05:34]} {[%emt
00:01:29]} 55. a7 {[%clk 00:00:57]} {[%emt 00:00:05]} Ra8 {[%clk 00:05:05]}
{[%emt 00:00:59]} 56. Rd8 {[%clk 00:00:35]} {[%emt 00:00:52]} Bc8 {[%clk
00:05:22]} {[%emt 00:00:13]} 57. Ke3 {[%clk 00:00:31]} {[%emt 00:00:33]} b3
{[%clk 00:04:43]} {[%emt 00:01:10]} 58. Kd2 {[%clk 00:00:50]} {[%emt 00:00:10]}
c5 {[%clk 00:05:00]} {[%emt 00:00:14]} 59. Bxc5 {[%clk 00:00:33]} {[%emt
00:00:47]} g4 {[%clk 00:04:23]} {[%emt 00:01:06]} 60. fxg4 {[%clk 00:00:43]}
{[%emt 00:00:21]} hxg4 {[%clk 00:04:09]} {[%emt 00:00:44]} 61. g3 {[%clk
00:00:44]} {[%emt 00:00:29]} Kf5 {[%clk 00:03:25]} {[%emt 00:01:12]} 62. Kc3
{[%clk 00:00:32]} {[%emt 00:00:44]} Bb7 {[%clk 00:02:55]} {[%emt 00:00:58]} 63.
Rb8 {[%clk 00:00:48]} {[%emt 00:00:15]} Bf3 {[%clk 00:02:27]} {[%emt 00:00:57]}
64. Kd4 {[%clk 00:00:31]} {[%emt 00:00:49]} Ke6 {[%clk 00:02:36]} {[%emt
00:00:19]} 65. Rb6+ {[%clk 00:00:32]} {[%emt 00:00:30]} Kd7 {[%clk 00:02:47]}
{[%emt 00:00:19]} 66. Rxb3 {[%clk 00:00:58]} {[%emt 00:00:04]} Kc6 {[%clk
00:02:55]} {[%emt 00:00:19]} 67. Rb8 {[%clk 00:01:13]} {[%emt 00:00:18]} Kc7
{[%clk 00:03:06]} {[%emt 00:00:18]} 68. Bb6+ {[%clk 00:01:27]} {[%emt
00:00:17]} Kd7 {[%clk 00:03:28]} {[%emt 00:00:08]} 69. Kc5 {[%clk 00:01:53]}
{[%emt 00:00:05]} Bg2 {[%clk 00:03:21]} {[%emt 00:00:35]} 70. Kb5 {[%clk
00:02:09]} {[%emt 00:00:14]} Bf3 {[%clk 00:02:30]} {[%emt 00:01:22]} 71. Be3
{[%clk 00:02:15]} {[%emt 00:00:25]} Bg2 {[%clk 00:01:35]} {[%emt 00:01:25]} 72.
Kb6 {[%clk 00:02:36]} {[%emt 00:00:09]} Bf3 {[%clk 00:01:34]} {[%emt 00:00:32]}
73. Bf4 {[%clk 00:02:59]} {[%emt 00:00:06]} Be4 {[%clk 00:01:50]} {[%emt
00:00:13]} 74. Rb7+ {[%clk 00:03:16]} {[%emt 00:00:14]} Kc8 {[%clk 00:02:04]}
{[%emt 00:00:14]} 75. Rg7 {[%clk 00:03:29]} {[%emt 00:00:18]} Bf3 {[%clk
00:02:20]} {[%emt 00:00:15]} 76. Bg5 {[%clk 00:03:29]} {[%emt 00:00:30]} Be4
{[%clk 00:02:41]} {[%emt 00:00:08]} 77. Rc7# {[%clk 00:03:55]} {[%emt
00:00:05]} 1-0

[Event "Mitropa Cup 2023 Open selection"]
[Site "Mali Losinj, Croatia"]
[Date "2023.04.11"]
[Round "1.15"]
[White "Lavrencic, Matic"]
[Black "Fodor, Tamas Jr."]
[Result "1/2-1/2"]
[TimeControl "90 min + 30 min after 40 moves + 30 sec increment from move 1"]
[WhiteElo "2327"]
[BlackElo "2495"]

1. e4 {[%clk 01:30:09]} {[%emt 00:00:50]} e5 {[%clk 01:30:55]} {[%emt
00:00:06]} 2. Nf3 {[%clk 01:29:51]} {[%emt 00:00:47]} Nc6 {[%clk 01:31:19]}
{[%emt 00:00:06]} 3. Bb5 {[%clk 01:30:14]} {[%emt 00:00:08]} a6 {[%clk
01:31:41]} {[%emt 00:00:08]} 4. Ba4 {[%clk 01:30:36]} {[%emt 00:00:08]} Nf6
{[%clk 01:32:04]} {[%emt 00:00:06]} 5. O-O {[%clk 01:30:54]} {[%emt 00:00:12]}
Be7 {[%clk 01:31:56]} {[%emt 00:00:37]} 6. Re1 {[%clk 01:28:50]} {[%emt
00:02:35]} b5 {[%clk 01:32:21]} {[%emt 00:00:05]} 7. Bb3 {[%clk 01:29:17]}
{[%emt 00:00:04]} O-O {[%clk 01:32:43]} {[%emt 00:00:07]} 8. a4 {[%clk
01:25:16]} {[%emt 00:04:31]} Bb7 {[%clk 01:32:44]} {[%emt 00:00:29]} 9. d3
{[%clk 01:22:56]} {[%emt 00:02:50]} d6 {[%clk 01:27:56]} {[%emt 00:05:19]} 10.
Bd2 {[%clk 01:23:18]} {[%emt 00:00:08]} Rb8 {[%clk 01:23:20]} {[%emt 00:05:05]}
11. axb5 {[%clk 01:15:24]} {[%emt 00:08:24]} axb5 {[%clk 01:23:38]} {[%emt
00:00:12]} 12. Nc3 {[%clk 01:14:42]} {[%emt 00:01:12]} Bc8 {[%clk 01:12:48]}
{[%emt 00:11:19]} 13. Nd5 {[%clk 01:11:29]} {[%emt 00:03:44]} Bg4 {[%clk
01:04:13]} {[%emt 00:09:04]} 14. c3 {[%clk 01:10:09]} {[%emt 00:01:51]} Qd7
{[%clk 01:03:08]} {[%emt 00:01:35]} 15. h3 {[%clk 01:01:19]} {[%emt 00:09:19]}
Be6 {[%clk 01:00:49]} {[%emt 00:02:50]} 16. Ng5 {[%clk 00:55:48]} {[%emt
00:06:01]} Nd8 {[%clk 00:53:23]} {[%emt 00:07:56]} 17. Nxe6 {[%clk 00:49:49]}
{[%emt 00:06:30]} Nxe6 {[%clk 00:53:36]} {[%emt 00:00:16]} 18. Ra7 {[%clk
00:47:23]} {[%emt 00:02:56]} Bd8 {[%clk 00:46:55]} {[%emt 00:07:10]} 19. Qe2
{[%clk 00:40:10]} {[%emt 00:07:44]} Qc8 {[%clk 00:42:55]} {[%emt 00:04:29]} 20.
Nxf6+ {[%clk 00:39:52]} {[%emt 00:00:49]} Bxf6 {[%clk 00:43:18]} {[%emt
00:00:07]} 21. Rea1 {[%clk 00:39:19]} {[%emt 00:01:04]} Nc5 {[%clk 00:30:13]}
{[%emt 00:13:34]} 22. Bc2 {[%clk 00:37:15]} {[%emt 00:02:34]} Rb7 {[%clk
00:30:30]} {[%emt 00:00:13]} 23. R7a3 {[%clk 00:30:30]} {[%emt 00:07:15]} Ne6
{[%clk 00:29:39]} {[%emt 00:01:22]} 24. Qg4 {[%clk 00:26:54]} {[%emt 00:04:05]}
c5 {[%clk 00:26:00]} {[%emt 00:04:10]} 25. Ra6 {[%clk 00:23:06]} {[%emt
00:04:17]} Qc7 {[%clk 00:26:12]} {[%emt 00:00:17]} 26. Be3 {[%clk 00:18:47]}
{[%emt 00:04:50]} g6 {[%clk 00:22:00]} {[%emt 00:04:42]} 27. Qe2 {[%clk
00:17:27]} {[%emt 00:01:50]} b4 {[%clk 00:20:06]} {[%emt 00:02:24]} 28. Qd1
{[%clk 00:12:45]} {[%emt 00:05:12]} Rfb8 {[%clk 00:19:51]} {[%emt 00:00:44]} 29.
Ra8 {[%clk 00:10:58]} {[%emt 00:02:18]} 1/2-1/2

[Event "Mitropa Cup 2023 Open selection"]
[Site "Mali Losinj, Croatia"]
[Date "2023.04.11"]
[Round "1.16"]
[White "Nemeth, Miklos"]
[Black "Brilej, Jaka"]
[Result "1-0"]
[TimeControl "90 min + 30 min after 40 moves + 30 sec increment from move 1"]
[WhiteElo "2453"]
[BlackElo "2321"]

1. e4 {[%clk 01:30:56]} {[%emt 00:00:03]} e6 {[%clk 01:30:54]} {[%emt
00:00:07]} 2. d4 {[%clk 01:31:17]} {[%emt 00:00:09]} d5 {[%clk 01:31:16]}
{[%emt 00:00:07]} 3. e5 {[%clk 01:31:38]} {[%emt 00:00:09]} c5 {[%clk
01:31:37]} {[%emt 00:00:09]} 4. c3 {[%clk 01:32:05]} {[%emt 00:00:03]} Nc6
{[%clk 01:30:54]} {[%emt 00:01:13]} 5. Nf3 {[%clk 01:32:30]} {[%emt 00:00:06]}
Qb6 {[%clk 01:31:11]} {[%emt 00:00:12]} 6. Bd3 {[%clk 01:32:56]} {[%emt
00:00:04]} cxd4 {[%clk 01:30:24]} {[%emt 00:01:17]} 7. O-O {[%clk 01:33:20]}
{[%emt 00:00:07]} Bd7 {[%clk 01:29:44]} {[%emt 00:01:08]} 8. Re1 {[%clk
01:33:00]} {[%emt 00:00:51]} Nge7 {[%clk 01:29:05]} {[%emt 00:01:09]} 9. h4
{[%clk 01:33:05]} {[%emt 00:00:26]} h6 {[%clk 01:28:57]} {[%emt 00:00:38]} 10.
h5 {[%clk 01:33:07]} {[%emt 00:00:28]} Rc8 {[%clk 01:28:56]} {[%emt 00:00:30]}
11. a3 {[%clk 01:33:11]} {[%emt 00:00:25]} a6 {[%clk 01:27:27]} {[%emt
00:02:00]} 12. b4 {[%clk 01:33:28]} {[%emt 00:00:13]} dxc3 {[%clk 01:24:58]}
{[%emt 00:02:59]} 13. Nxc3 {[%clk 01:33:52]} {[%emt 00:00:06]} Nxb4 {[%clk
01:24:12]} {[%emt 00:01:16]} 14. Na4 {[%clk 01:34:16]} {[%emt 00:00:07]} Bxa4
{[%clk 01:24:30]} {[%emt 00:00:12]} 15. Qxa4+ {[%clk 01:34:40]} {[%emt
00:00:06]} Nbc6 {[%clk 01:24:50]} {[%emt 00:00:10]} 16. Bd2 {[%clk 01:35:00]}
{[%emt 00:00:09]} Nf5 {[%clk 01:13:42]} {[%emt 00:11:38]} 17. Rab1 {[%clk
01:18:50]} {[%emt 00:16:40]} Qa7 {[%clk 01:11:36]} {[%emt 00:02:36]} 18. Bxf5
{[%clk 01:06:13]} {[%emt 00:13:08]} exf5 {[%clk 01:11:48]} {[%emt 00:00:17]} 19.
Qf4 {[%clk 01:06:25]} {[%emt 00:00:18]} Bc5 {[%clk 00:53:53]} {[%emt 00:18:25]}
20. Nh4 {[%clk 01:06:32]} {[%emt 00:00:23]} Nd4 {[%clk 00:48:53]} {[%emt
00:05:30]} 21. Qg3 {[%clk 00:55:01]} {[%emt 00:12:01]} Kf8 {[%clk 00:41:11]}
{[%emt 00:08:12]} 22. Be3 {[%clk 00:54:51]} {[%emt 00:00:39]} Ne6 {[%clk
00:32:20]} {[%emt 00:09:22]} 23. Nxf5 {[%clk 00:53:06]} {[%emt 00:02:16]} Bxe3
{[%clk 00:29:17]} {[%emt 00:03:33]} 24. Rxe3 {[%clk 00:53:26]} {[%emt
00:00:09]} d4 {[%clk 00:29:40]} {[%emt 00:00:07]} 25. Reb3 {[%clk 00:50:53]}
{[%emt 00:03:03]} b5 {[%clk 00:29:14]} {[%emt 00:00:56]} 26. a4 {[%clk
00:50:26]} {[%emt 00:00:56]} Kg8 {[%clk 00:28:14]} {[%emt 00:01:31]} 27. axb5
{[%clk 00:50:33]} {[%emt 00:00:23]} axb5 {[%clk 00:28:35]} {[%emt 00:00:10]} 28.
Rxb5 {[%clk 00:47:54]} {[%emt 00:03:08]} Kh7 {[%clk 00:26:48]} {[%emt
00:02:18]} 29. Rb7 {[%clk 00:46:31]} {[%emt 00:01:52]} Qa2 {[%clk 00:26:51]}
{[%emt 00:00:26]} 30. Nxd4 {[%clk 00:38:18]} {[%emt 00:08:44]} Rhf8 {[%clk
00:20:51]} {[%emt 00:06:30]} 31. Nf5 {[%clk 00:34:42]} {[%emt 00:04:07]} Qc2
{[%clk 00:16:30]} {[%emt 00:04:49]} 32. Nd6 {[%clk 00:32:06]} {[%emt 00:03:07]}
Rc7 {[%clk 00:15:37]} {[%emt 00:01:23]} 33. Qg4 {[%clk 00:27:28]} {[%emt
00:05:08]} Rxb7 {[%clk 00:11:13]} {[%emt 00:04:54]} 34. Rxb7 {[%clk 00:27:49]}
{[%emt 00:00:08]} Kg8 {[%clk 00:09:37]} {[%emt 00:02:08]} 35. Re7 {[%clk
00:18:00]} {[%emt 00:10:18]} Qc5 {[%clk 00:06:15]} {[%emt 00:03:51]} 36. Qg3
{[%clk 00:13:30]} {[%emt 00:05:00]} Qc2 {[%clk 00:04:40]} {[%emt 00:02:06]} 37.
Kh2 {[%clk 00:09:27]} {[%emt 00:04:34]} Qd1 {[%clk 00:04:37]} {[%emt 00:00:32]}
38. f3 {[%clk 00:08:43]} {[%emt 00:01:14]} Ng5 {[%clk 00:03:29]} {[%emt
00:01:38]} 39. Qf4 {[%clk 00:08:44]} {[%emt 00:00:29]} Ne6 {[%clk 00:03:05]}
{[%emt 00:00:55]} 40. Qg4 {[%clk 00:36:50]} {[%emt 00:02:23]} Ng5 {[%clk
00:31:49]} {[%emt 00:01:46]} 41. Ne4 {[%clk 00:28:30]} {[%emt 00:08:50]} Nxe4
{[%clk 00:31:14]} {[%emt 00:01:05]} 42. Qxe4 {[%clk 00:28:53]} {[%emt
00:00:07]} Qd8 {[%clk 00:28:32]} {[%emt 00:03:12]} 43. Qb4 {[%clk 00:27:18]}
{[%emt 00:02:05]} Re8 {[%clk 00:27:51]} {[%emt 00:01:11]} 44. Rxe8+ {[%clk
00:27:37]} {[%emt 00:00:11]} Qxe8 {[%clk 00:28:16]} {[%emt 00:00:05]} 45. Qd6
{[%clk 00:27:53]} {[%emt 00:00:13]} Qc8 {[%clk 00:25:39]} {[%emt 00:03:07]} 46.
g4 {[%clk 00:26:36]} {[%emt 00:01:47]} Qc4 {[%clk 00:18:59]} {[%emt 00:07:10]}
47. Kg3 {[%clk 00:24:03]} {[%emt 00:03:04]} Qf1 {[%clk 00:17:38]} {[%emt
00:01:51]} 48. Qd8+ {[%clk 00:22:36]} {[%emt 00:01:57]} Kh7 {[%clk 00:18:02]}
{[%emt 00:00:06]} 49. Qd2 {[%clk 00:22:56]} {[%emt 00:00:09]} Kg8 {[%clk
00:17:27]} {[%emt 00:01:05]} 50. Qe3 {[%clk 00:22:12]} {[%emt 00:01:15]} Qc4
{[%clk 00:17:29]} {[%emt 00:00:28]} 51. f4 {[%clk 00:20:18]} {[%emt 00:02:24]}
Qc7 {[%clk 00:16:54]} {[%emt 00:01:05]} 52. Kh3 {[%clk 00:17:50]} {[%emt
00:02:58]} Kf8 {[%clk 00:10:16]} {[%emt 00:07:07]} 53. Qa3+ {[%clk 00:16:03]}
{[%emt 00:02:18]} Kg8 {[%clk 00:10:15]} {[%emt 00:00:31]} 54. Kg3 {[%clk
00:15:25]} {[%emt 00:01:08]} Qb6 {[%clk 00:09:40]} {[%emt 00:01:04]} 55. Qc1
{[%clk 00:12:50]} {[%emt 00:03:06]} Qb3+ {[%clk 00:09:46]} {[%emt 00:00:23]} 56.
Kf2 {[%clk 00:12:51]} {[%emt 00:00:29]} Qh3 {[%clk 00:09:31]} {[%emt 00:00:46]}
57. Qd1 {[%clk 00:10:32]} {[%emt 00:02:48]} Qh2+ {[%clk 00:09:20]} {[%emt
00:00:41]} 58. Ke3 {[%clk 00:10:08]} {[%emt 00:00:55]} Qg3+ {[%clk 00:09:27]}
{[%emt 00:00:23]} 59. Qf3 {[%clk 00:09:49]} {[%emt 00:00:49]} Qe1+ {[%clk
00:09:25]} {[%emt 00:00:31]} 60. Qe2 {[%clk 00:10:00]} {[%emt 00:00:19]} Qg1+
{[%clk 00:08:08]} {[%emt 00:01:46]} 61. Ke4 {[%clk 00:09:36]} {[%emt 00:00:55]}
Qb1+ {[%clk 00:08:21]} {[%emt 00:00:17]} 62. Kd4 {[%clk 00:08:25]} {[%emt
00:01:41]} Qc1 {[%clk 00:08:00]} {[%emt 00:00:50]} 63. f5 {[%clk 00:07:48]}
{[%emt 00:01:09]} Qa1+ {[%clk 00:08:06]} {[%emt 00:00:23]} 64. Ke4 {[%clk
00:08:03]} {[%emt 00:00:15]} Qa8+ {[%clk 00:04:21]} {[%emt 00:04:15]} 65. Kf4
{[%clk 00:08:22]} {[%emt 00:00:11]} Qb8 {[%clk 00:04:45]} {[%emt 00:00:07]} 66.
Qc4 {[%clk 00:07:59]} {[%emt 00:00:53]} Kf8 {[%clk 00:04:37]} {[%emt 00:00:38]}
67. Qc5+ {[%clk 00:07:39]} {[%emt 00:00:50]} Ke8 {[%clk 00:03:39]} {[%emt
00:01:28]} 68. Qc6+ {[%clk 00:07:35]} {[%emt 00:00:33]} Ke7 {[%clk 00:04:01]}
{[%emt 00:00:09]} 69. f6+ {[%clk 00:07:45]} {[%emt 00:00:20]} gxf6 {[%clk
00:04:22]} {[%emt 00:00:09]} 70. Qxf6+ {[%clk 00:08:12]} {[%emt 00:00:03]} Ke8
{[%clk 00:04:44]} {[%emt 00:00:09]} 71. Qh8+ {[%clk 00:08:37]} {[%emt
00:00:04]} 1-0